bitfinex/quotes_ETHUSD_20220219
["timestamp","ask_amount","ask_price","bid_price","bid_amount"]
[1645273556737,0.59491665,2724.0,2723.4,0.00201806]
[1645273556939,6.56666,2724.2,2723.4,0.00201806]
[1645273556940,0.91832,2723.8,2723.4,0.00201806]
[1645273557140,3.34983745,2724.1,2723.3,0.69402879]
[1645273557141,0.59491665,2723.7,2723.3,0.69402879]
[1645273557437,1.8366,2724.1,2723.4,0.953895]
[1645273557641,0.59520179,2724.0,2723.4,0.95187694]
[1645273557837,0.59520179,2724.0,2723.5,0.00201806]
[1645273558237,0.91829,2723.9,2723.5,0.00201806]
[1645273558542,0.59520179,2723.8,2723.5,0.00201806]
[1645273558739,1.2299,2724.2,2723.4,0.95187694]
[1645273558740,0.59520179,2723.7,2723.4,0.95187694]
[1645273558940,0.59520179,2723.6,2723.5,0.00201806]
[1645273559188,1.2299,2724.2,2723.5,0.00085155]
[1645273559189,0.59520179,2724.1,2723.5,0.00085155]
[1645273559389,0.59520179,2724.0,2723.5,0.00286961]
[1645273559591,0.59520179,2723.9,2723.5,0.00286961]
[1645273559794,0.59520179,2723.8,2723.5,1.83920061]
[1645273559993,1.2299,2724.2,2723.6,0.95187694]
[1645273560195,1.51335514,2724.1,2723.6,0.953895]
[1645273560390,0.59514514,2724.0,2723.7,0.95187694]
[1645273560590,0.59514514,2724.0,2723.5,0.00085155]
[1645273560996,0.59514514,2723.9,2723.5,0.95404642]
[1645273561197,0.59514514,2724.1,2723.6,0.95319487]
[1645273561394,1.51339514,2724.0,2723.4,0.00201806]
[1645273561594,1.51339514,2724.0,2723.6,0.00085153]
[1645273561595,0.59514514,2723.9,2723.6,0.00085153]
[1645273561994,0.59514514,2723.8,2723.6,0.00085153]
[1645273562195,0.59514514,2723.7,2723.6,0.00085153]
[1645273562396,0.59514514,2724.0,2723.6,0.00085153]
[1645273562594,0.59514514,2724.0,2723.5,0.00201806]
[1645273562956,0.59514514,2724.0,2723.5,0.00286961]
[1645273563138,0.59514514,2723.9,2723.5,0.00286961]
[1645273563339,0.59514514,2723.8,2723.5,0.00286961]
[1645273563540,1.29169597,2724.1,2723.5,0.00286961]
[1645273563747,0.59514514,2724.0,2723.5,0.92021366]
[1645273564043,0.69655083,2724.1,2723.5,0.92021366]
[1645273564044,0.59514514,2723.9,2723.5,0.92106521]
[1645273564243,0.59514514,2723.8,2723.5,0.92106521]
[1645273564442,0.59514514,2724.0,2723.5,0.92106521]
[1645273564643,0.59514514,2723.7,2723.5,0.92106521]
[1645273564843,0.59514514,2723.7,2723.5,0.91904715]
[1645273565044,0.59514514,2723.6,2723.5,0.9181956]
[1645273565245,1.29169597,2724.1,2723.5,1.87535631]
[1645273565445,1.29169597,2724.1,2723.5,0.92106522]
[1645273565646,1.29169597,2724.1,2723.6,0.95461395]
[1645273566445,1.29169597,2724.1,2723.7,0.00085149]
[1645273566691,0.73152317,2723.5,2723.3,1.61567524]
[1645273566892,0.73152317,2723.5,2723.4,0.95603429]
[1645273567086,0.73152317,2723.5,2723.4,0.95402609]
[1645273567389,1.32802283,2723.5,2723.4,0.95402609]
[1645273572446,1.32802283,2723.5,2723.4,1.87220609]
[1645273572647,0.73152317,2723.5,2723.4,1.87220609]
[1645273572844,0.73152317,2723.5,2723.4,0.95402609]
[1645273574293,1.32823484,2723.5,2723.4,0.95402609]
[1645273574499,0.73152317,2723.5,2723.4,0.95402609]
[1645273574698,1.32820266,2723.5,2723.4,0.95402609]
[1645273577000,7.04597391,2723.4,2723.3,0.69402879]
[1645273577305,7.04597391,2723.4,2723.3,0.00084948]
[1645273578144,7.04597391,2723.4,2723.1,0.80117171]
[1645273578544,7.04597391,2723.4,2723.2,0.00084951]
[1645273579345,7.04597391,2723.4,2723.1,1.71951321]
[1645273579746,7.04597391,2723.4,2723.2,0.00084953]
[1645273580545,7.04597391,2723.4,2723.1,2.63786321]
[1645273580747,10.64597391,2723.4,2723.2,0.91835]
[1645273580946,10.64597391,2723.4,2723.2,0.91919953]
[1645273581145,10.64597391,2723.4,2723.2,0.00084953]
[1645273581798,10.64597391,2723.4,2723.2,1.00445616]
[1645273581991,10.64597391,2723.4,2723.2,1.00530569]
[1645273582190,10.64597391,2723.4,2723.2,0.91918953]
[1645273582590,10.64597391,2723.4,2723.2,1.83749723]
[1645273582992,10.64597391,2723.4,2723.2,1.8366477]
[1645273583192,10.64597391,2723.4,2723.2,1.83749723]
[1645273584092,10.64597391,2723.4,2723.2,1.8366477]
[1645273584493,10.64597391,2723.4,2723.2,1.83749723]
[1645273585550,10.64597391,2723.4,2723.2,1.8366477]
[1645273585748,10.64597391,2723.4,2723.2,1.83749723]
[1645273586249,10.64597391,2723.4,2723.2,0.00084953]
[1645273586451,3.5,2723.3,2723.2,0.00084953]
[1645273586653,3.5,2723.3,2722.9,0.0020082]
[1645273586654,0.0008,2723.0,2722.9,0.0020082]
[1645273586853,0.0008,2723.0,2722.7,0.17884689]
[1645273587049,0.0008,2723.0,2722.8,0.00339862]
[1645273587450,0.91947,2723.0,2722.8,0.00339862]
[1645273587652,4.41871,2722.9,2722.8,9.862e-05]
[1645273587953,4.41871,2722.9,2722.7,0.17683869]
[1645273588147,3.5,2722.8,2722.7,0.17683869]
[1645273588951,5.33767,2722.8,2722.7,0.17683869]
[1645273589399,5.33767,2722.8,2722.6,4.145e-05]
[1645273589400,9.0,2722.7,2722.6,4.145e-05]
[1645273589594,13.53011102,2722.7,2722.6,4.145e-05]
[1645273589793,13.71371102,2722.7,2722.6,4.145e-05]
[1645273590197,14.33767,2722.7,2721.9,2.49837118]
[1645273590393,14.33767,2722.7,2721.9,3.3368893]
[1645273590394,1.83768,2722.6,2721.9,3.3368893]
[1645273590597,1.83768,2722.6,2721.9,2.49837118]
[1645273590598,0.91884,2722.4,2721.9,2.49837118]
[1645273590794,0.91884,2722.4,2721.9,0.0020082]
[1645273590795,1.10244,2722.4,2721.9,0.0020082]
[1645273590995,14.53494,2722.4,2721.6,0.0020082]
[1645273591298,16.22,2722.2,2721.6,8.2e-06]
[1645273591498,16.22,2722.2,2721.2,10.67875594]
[1645273591499,1.83818,2722.3,2721.3,0.00199982]
[1645273591500,11.22,2721.9,2721.3,0.00199982]
[1645273591795,2.21923,2721.8,2721.3,0.88372297]
[1645273592001,0.91923,2721.8,2721.3,0.88372297]
[1645273592198,1.0,2722.3,2721.3,0.88372297]
[1645273592394,0.9189714,2722.2,2721.3,0.88372297]
[1645273592595,0.91895,2722.0,2721.3,0.88372297]
[1645273592795,1.79788217,2722.0,2721.3,0.88372297]
[1645273593045,1.79788217,2722.0,2721.7,0.00083974]
[1645273593246,3.6,2721.8,2721.7,0.00083974]
[1645273593944,19.32,2721.8,2721.3,0.00199982]
[1645273594148,20.53915,2721.8,2721.6,0.00083976]
[1645273594346,15.72,2721.7,2721.6,3.976e-05]
[1645273594553,4.5,2721.7,2721.6,3.976e-05]
[1645273594746,4.8,2721.7,2721.6,3.976e-05]
[1645273594947,19.66733097,2721.7,2721.6,3.976e-05]
[1645273595146,19.66733097,2721.7,2721.1,3.0]
[1645273595147,0.91938,2721.6,2721.1,3.0]
[1645273595351,11.66,2721.5,2721.1,3.0]
[1645273595546,12.90284769,2721.5,2721.1,3.0]
[1645273595750,1.0,2721.4,2721.1,3.0]
[1645273595946,1.83872,2721.3,2721.1,3.0]
[1645273596147,2.75807,2721.3,2721.1,3.0]
[1645273597591,0.91935,2721.2,2721.1,3.0]
[1645273598994,12.8543643,2722.5,2721.1,3.0]
[1645273598995,1.10277,2721.9,2721.1,3.0]
[1645273599194,1.2122,2722.0,2721.1,3.0]
[1645273599997,4.51901,2721.8,2721.2,0.63658756]
[1645273600195,4.51901,2721.8,2721.3,0.00083785]
[1645273600467,4.51901,2721.8,2721.3,0.00283767]
[1645273600650,3.6,2721.8,2721.3,0.00283767]
[1645273601048,3.6,2721.8,2721.3,0.00199982]
[1645273601247,3.6,2721.8,2721.4,0.00083782]
[1645273602250,3.6,2721.8,2721.4,0.91879]
[1645273602648,3.6,2721.8,2721.5,0.1845378]
[1645273602847,3.6,2721.8,2721.5,0.9195278]
[1645273603048,3.6,2721.8,2721.5,1.8382078]
[1645273603250,3.6,2721.8,2721.6,0.71814112]
[1645273605001,3.6,2721.8,2721.6,0.71897889]
[1645273605793,3.6,2721.8,2721.6,0.71814112]
[1645273606194,3.6,2721.8,2721.6,0.71897889]
[1645273606699,1.93557434,2721.8,2721.6,0.71897889]
[1645273607095,1.93557434,2721.8,2721.6,0.71814112]
[1645273607501,1.93557434,2721.8,2721.6,0.71897889]
[1645273608346,1.93557434,2721.8,2721.6,0.71814112]
[1645273608547,1.93557434,2721.8,2721.6,0.71897889]
[1645273609547,1.93557434,2721.8,2721.6,0.71814112]
[1645273609747,1.93557434,2721.8,2721.6,0.71897889]
[1645273610750,1.93557434,2721.8,2721.6,0.71814112]
[1645273610948,1.93557434,2721.8,2721.6,0.71897889]
[1645273611795,1.93557434,2721.8,2721.6,0.71814112]
[1645273612192,1.93557434,2721.8,2721.6,0.71897889]
[1645273613192,1.93557434,2721.8,2721.6,0.71814112]
[1645273617453,1.93557434,2721.8,2721.4,0.54203254]
[1645273618852,1.93557434,2721.8,2721.6,0.89490095]
[1645273623245,1.93557434,2721.8,2721.6,1.81371275]
[1645273623447,1.93557434,2721.8,2721.6,0.89490095]
[1645273624546,2.85454434,2721.8,2721.6,0.89490095]
[1645273624950,1.93557434,2721.8,2721.6,0.89490095]
[1645273625348,1.93557434,2721.8,2721.6,1.81372705]
[1645273626346,1.93557434,2721.8,2721.6,2.73257705]
[1645273626800,0.2711052,2721.8,2721.6,2.73257705]
[1645273627800,0.2711052,2721.8,2721.6,2.73255625]
[1645273630196,0.2711052,2721.8,2721.6,1.81375095]
[1645273630845,0.2711052,2721.8,2721.7,0.84735817]
[1645273631049,0.97440181,2721.8,2721.7,0.84735817]
[1645273632050,1.2318,2722.3,2721.8,7.0]
[1645273632253,1.1379,2722.7,2722.1,0.91855]
[1645273632551,1.1379,2722.7,2722.2,0.9185264]
[1645273632747,1.239,2722.8,2722.2,0.9185264]
[1645273633147,1.239,2722.8,2722.3,1.67802614]
[1645273633450,1.239,2722.8,2722.4,0.9185202]
[1645273634497,1.239,2722.8,2722.5,2.7554593]
[1645273634897,1.239,2722.8,2722.5,1.8369293]
[1645273635099,1.239,2722.8,2722.5,0.9184593]
[1645273635899,1.239,2722.8,2722.6,0.9185128]
[1645273636108,1.239,2722.8,2722.5,0.91844]
[1645273636898,1.239,2722.8,2722.5,1.83698]
[1645273638244,1.239,2722.8,2722.5,0.91844]
[1645273638652,4.839,2722.8,2722.5,0.91844]
[1645273639845,4.839,2722.8,2722.3,0.75960614]
[1645273640350,4.839,2722.8,2722.0,0.00274636]
[1645273640351,3.5,2722.7,2722.0,0.00274636]
[1645273640546,0.91879,2722.5,2722.0,0.00274636]
[1645273640747,0.91879,2722.5,2721.8,0.00199982]
[1645273641046,0.91879,2722.5,2721.9,0.9188]
[1645273641451,1.70214034,2722.5,2721.9,0.79588204]
[1645273641902,2.39869117,2722.5,2721.5,0.00199982]
[1645273642101,1.1868,2722.4,2721.7,0.00274671]
[1645273642298,0.91882,2722.2,2721.7,0.00274671]
[1645273642500,1.1868,2722.4,2721.7,0.92158671]
[1645273642699,1.1868,2722.4,2721.8,0.00199982]
[1645273643099,1.1868,2722.4,2721.6,0.92075982]
[1645273643302,1.1868,2722.4,2721.8,0.91875]
[1645273643500,1.1868,2722.4,2721.9,0.81477313]
[1645273644305,1.1868,2722.4,2721.9,1.73352313]
[1645273644702,2.10556,2722.4,2721.9,1.73352313]
[1645273645101,2.80211083,2722.4,2721.9,1.73352313]
[1645273646348,2.10556,2722.4,2721.9,1.73352313]
[1645273646759,2.80211083,2722.4,2721.9,0.19267271]
[1645273647349,2.80211083,2722.4,2721.9,1.11142271]
[1645273648550,2.80211083,2722.4,2721.9,1.06142271]
[1645273649403,2.10556,2722.4,2721.9,1.06142271]
[1645273650096,2.80211083,2722.4,2721.9,1.06142271]
[1645273650297,2.10556,2722.4,2721.9,1.06142271]
[1645273652299,0.66178646,2722.3,2722.0,0.8911622]
[1645273652500,1.58059646,2722.3,2722.0,0.8911622]
[1645273652699,0.66178646,2722.2,2722.0,0.8911622]
[1645273652948,0.66178646,2722.2,2722.0,1.8099222]
[1645273653147,0.66178646,2722.2,2721.9,0.19267271]
[1645273653550,0.69655083,2722.3,2721.9,0.19267271]
[1645273653551,0.66178646,2722.1,2721.9,0.19267271]
[1645273653749,0.66178646,2722.0,2721.9,0.19267271]
[1645273653950,0.66178646,2722.0,2721.7,0.89088038]
[1645273654350,0.66192708,2721.9,2721.8,0.89088038]
[1645273655055,0.66192708,2721.9,2721.7,0.00199982]
[1645273655056,0.88518716,2721.9,2721.7,0.00199982]
[1645273655262,0.88518716,2721.9,2721.1,3.1836]
[1645273655263,1.19092708,2721.8,2721.3,0.00199982]
[1645273655458,0.66192708,2721.7,2721.3,0.00199982]
[1645273655653,1.19092708,2721.6,2721.3,0.00274706]
[1645273655851,1.58114188,2721.5,2721.3,0.00274706]
[1645273656053,0.66192708,2721.4,2721.3,0.00274706]
[1645273656253,1.58113708,2721.4,2721.2,0.89263781]
[1645273656451,2.50035708,2721.4,2721.2,0.89063799]
[1645273656695,0.66192708,2721.3,2721.2,0.89063799]
[1645273657296,1.58114708,2721.3,2721.2,0.89063799]
[1645273657502,2.11014708,2721.3,2721.1,3.0]
[1645273657796,0.66192708,2721.2,2721.1,3.0]
[1645273657997,0.66192708,2721.2,2721.1,3.89402335]
[1645273658194,0.66192708,2721.2,2721.1,3.0]
[1645273658396,1.58123708,2721.2,2721.1,3.0]
[1645273660299,1.58123708,2721.2,2721.1,3.89222014]
[1645273661945,4.51931,2721.2,2721.1,3.89222014]
[1645273662353,5.17643264,2721.2,2721.1,3.89222014]
[1645273662547,5.17643264,2721.2,2721.1,3.0]
[1645273662747,5.17643264,2721.2,2721.1,3.89176939]
[1645273663047,5.17643264,2721.2,2721.1,3.0]
[1645273663648,4.51931,2721.2,2721.1,3.89115918]
[1645273665997,4.51931,2721.2,2721.1,3.0]
[1645273666198,4.51931,2721.2,2721.1,3.89073992]
[1645273666397,4.51931,2721.2,2721.1,3.0]
[1645273666602,4.51931,2721.2,2721.1,3.89055526]
[1645273667200,4.51931,2721.2,2721.1,3.0]
[1645273667201,5.17617864,2721.2,2721.1,3.0]
[1645273667401,5.17617864,2721.2,2721.1,1.33489086]
[1645273667402,5.70517864,2721.2,2721.1,1.33489086]
[1645273670253,5.04831,2721.2,2721.1,1.33489086]
[1645273671050,5.67381629,2721.2,2721.1,1.33489086]
[1645273671695,5.04831,2721.2,2721.1,1.33489086]
[1645273671897,5.6736886,2721.2,2721.1,1.33489086]
[1645273676255,5.1446886,2721.2,2721.1,1.33489086]
[1645273678063,4.51931,2721.2,2721.1,1.33489086]
[1645273679056,5.13847111,2721.2,2721.1,1.33489086]
[1645273685951,5.13847111,2721.2,2721.1,2.26433026]
[1645273686802,5.13847111,2721.2,2721.1,1.33489086]
[1645273687400,0.91919,2721.1,2721.0,0.40938889]
[1645273687602,1.53835111,2721.1,2720.4,0.92117982]
[1645273687804,3.6,2721.2,2720.6,0.00317624]
[1645273687805,0.61916111,2721.0,2720.6,0.00317624]
[1645273688002,0.61916111,2721.0,2720.6,0.00517606]
[1645273688003,0.61916111,2720.9,2720.6,0.00517606]
[1645273688401,0.61916111,2720.9,2720.6,0.00317624]
[1645273688901,0.91943,2720.6,2720.4,0.00199982]
[1645273689102,0.91943,2720.6,2720.4,0.92948174]
[1645273689300,0.91943,2720.6,2720.5,0.92948174]
[1645273689702,0.91943,2720.6,2720.3,0.92948174]
[1645273689904,0.91943,2720.6,2720.4,0.92948174]
[1645273690102,0.91948,2720.4,2720.2,0.00199982]
[1645273690306,0.91948,2720.4,2720.2,0.92953566]
[1645273690307,1.8389516,2720.4,2720.2,0.92953566]
[1645273690752,1.8389516,2720.4,2720.3,0.92953566]
[1645273690753,2.3679516,2720.4,2720.3,0.92953566]
[1645273690950,2.3679516,2720.4,2720.0,0.00465391]
[1645273690951,2.988767,2720.4,2720.1,0.92953566]
[1645273691159,2.988767,2720.4,2719.6,0.1837]
[1645273691160,14.05790468,2720.3,2719.8,0.00199982]
[1645273691350,14.05790468,2720.3,2719.6,0.1837]
[1645273691351,0.9197624,2720.1,2719.6,0.18569982]
[1645273691551,0.9197624,2720.1,2719.8,0.00265428]
[1645273691552,0.529,2720.0,2719.8,0.00265428]
[1645273691848,1.41631313,2720.0,2719.8,0.00265428]
[1645273692246,2.33609313,2720.0,2719.8,0.00265428]
[1645273692448,2.33609313,2720.0,2719.6,0.18569982]
[1645273692449,2.7593144,2719.9,2719.6,0.18569982]
[1645273692649,2.7593144,2719.9,2719.6,0.1837]
[1645273693150,2.7593144,2719.9,2719.4,0.00465454]
[1645273693349,2.7593144,2719.9,2719.4,0.00265472]
[1645273693550,2.7593144,2719.9,2719.2,0.00199982]
[1645273693948,0.9197827,2719.7,2719.1,0.00277003]
[1645273694200,1.62661492,2719.5,2719.1,0.00277003]
[1645273694404,1.62661492,2719.5,2719.1,0.00476985]
[1645273694799,0.91977,2719.5,2719.1,0.00199982]
[1645273695405,0.91982,2719.4,2719.1,0.00199982]
[1645273695600,0.91982,2719.3,2719.0,0.74481038]
[1645273696407,0.91982,2719.3,2718.9,0.54562003]
[1645273696702,0.91985,2719.3,2718.9,0.54562003]
[1645273696903,0.91985,2719.2,2718.9,0.54562003]
[1645273699751,0.91985,2719.2,2719.0,0.83616851]
[1645273700554,0.91985,2719.2,2718.9,0.54562003]
[1645273701154,0.91985,2719.2,2718.6,0.69679563]
[1645273701355,0.91985,2719.2,2718.6,0.00275084]
[1645273701559,0.91985,2719.2,2718.6,0.00475066]
[1645273701560,0.67128051,2718.7,2718.6,0.00475066]
[1645273701807,4.41985,2719.2,2718.6,0.00475066]
[1645273701808,0.92005,2719.0,2718.6,0.00275084]
[1645273702001,0.92005,2719.0,2718.4,0.00199982]
[1645273702600,1.8400786,2719.0,2718.4,0.00199982]
[1645273702900,0.82419858,2718.8,2718.4,0.00199982]
[1645273703102,0.92006,2718.8,2718.4,0.00199982]
[1645273703502,0.92006,2718.8,2718.3,0.69404479]
[1645273703701,0.92006,2718.8,2718.3,0.00199982]
[1645273703902,0.92006,2718.8,2718.3,0.69404479]
[1645273704302,0.91996,2718.9,2718.3,0.69404479]
[1645273704501,0.91996,2718.9,2718.3,0.00199982]
[1645273705001,0.91996,2718.9,2718.3,0.69404479]
[1645273705201,0.91996,2718.9,2718.3,0.00199982]
[1645273705953,0.91991,2719.0,2718.3,0.00199982]
[1645273706656,0.91998,2719.0,2718.3,0.00199982]
[1645273706854,0.8051443,2718.6,2718.3,0.00199982]
[1645273707054,0.8051443,2718.6,2718.2,2.65466269]
[1645273707454,0.05874797,2718.7,2718.2,2.65466269]
[1645273708454,0.05874797,2718.7,2718.2,1.8264795]
[1645273711012,0.9201245,2718.6,2718.2,1.8264795]
[1645273711208,1.4493,2718.5,2718.2,1.8264795]
[1645273712202,0.63352303,2718.3,2718.2,1.8264795]
[1645273712404,3.00316893,2718.3,2718.2,1.8264795]
[1645273712803,9.0,2718.2,2718.0,0.0553489]
[1645273713054,0.529,2718.2,2718.0,0.0553489]
[1645273713255,3.5674508,2718.2,2718.0,0.0553489]
[1645273713557,0.92045,2718.1,2718.0,0.0553489]
[1645273713752,9.0,2718.0,2717.7,0.00496085]
[1645273713954,9.0,2718.0,2717.7,0.00296103]
[1645273713955,0.529,2717.9,2717.7,0.00296103]
[1645273714158,0.529,2717.9,2717.4,0.06199982]
[1645273714159,12.049,2717.9,2717.4,0.06199982]
[1645273714360,11.22,2717.7,2717.5,6.125e-05]
[1645273714561,1.44974,2717.6,2717.5,6.125e-05]
[1645273714854,3.70521098,2717.6,2717.5,6.125e-05]
[1645273715055,2.40521098,2717.6,2717.5,6.125e-05]
[1645273715258,2.40521098,2717.6,2717.4,0.06]
[1645273715259,2.22131098,2717.6,2717.4,0.06]
[1645273715557,0.529,2717.6,2717.4,0.06]
[1645273716159,5.7461,2718.2,2717.4,0.06]
[1645273716160,0.1839,2718.1,2717.4,0.06]
[1645273716356,1.7289,2718.2,2717.4,0.06]
[1645273716557,2.04156565,2718.2,2717.6,0.63321323]
[1645273716808,0.2157,2718.3,2717.6,4.31562435]
[1645273717005,0.2157,2718.3,2717.8,0.92]
[1645273717210,0.2157,2718.3,2717.8,0.92199982]
[1645273717401,0.2157,2718.3,2717.8,0.00199982]
[1645273717605,0.2157,2718.3,2717.6,0.63521305]
[1645273717802,0.2157,2718.3,2717.6,1.55534445]
[1645273718004,0.74148514,2718.1,2717.6,0.00199982]
[1645273718401,0.74148514,2718.1,2717.6,0.92217982]
[1645273718602,0.2157,2718.3,2717.6,0.92018]
[1645273718801,0.2157,2718.3,2717.6,0.92217982]
[1645273719601,0.6415394,2718.0,2717.6,0.00199982]
[1645273719806,0.2157,2718.3,2717.4,1.71506181]
[1645273720004,0.2157,2718.3,2717.4,1.71422999]
[1645273720202,0.2157,2718.3,2717.4,2.63443389]
[1645273720455,0.2157,2718.3,2717.4,2.63526571]
[1645273720646,0.92023,2718.2,2717.4,2.63526571]
[1645273720847,0.64878403,2718.1,2717.4,2.63526571]
[1645273721247,0.64878403,2718.1,2717.4,2.63443389]
[1645273721449,0.64878403,2718.1,2717.4,2.63526571]
[1645273722354,0.64878403,2718.1,2717.6,0.9201673]
[1645273722550,0.64878403,2718.1,2717.6,0.9202]
[1645273722949,0.64878403,2718.1,2717.4,0.79482181]
[1645273723459,1.56904403,2718.1,2717.4,0.06283164]
[1645273723653,0.529,2718.0,2717.4,0.06]
[1645273724055,0.529,2718.0,2717.4,0.06083182]
[1645273724697,0.92053,2717.9,2717.4,0.06083182]
[1645273724905,0.529,2717.8,2717.4,0.06]
[1645273725100,0.529,2717.8,2717.4,0.06083182]
[1645273725698,3.5,2717.7,2717.4,0.06083182]
[1645273725902,3.61233467,2717.6,2717.4,0.06083182]
[1645273726100,3.61233467,2717.6,2717.4,0.06]
[1645273726299,4.82883467,2717.6,2717.4,0.06083182]
[1645273726800,3.5,2717.5,2717.4,0.06083182]
[1645273726999,3.82883467,2717.6,2717.4,0.06083182]
[1645273727201,3.82883467,2717.6,2717.4,0.06]
[1645273727202,1.98751247,2717.6,2717.4,0.06]
[1645273728851,1.98751247,2717.6,2717.4,0.06083182]
[1645273729650,1.98751247,2717.6,2717.4,0.06]
[1645273729852,1.98751247,2717.6,2717.4,0.06083182]
[1645273730653,2.90793247,2717.6,2717.4,0.06083182]
[1645273730851,2.90793247,2717.6,2717.4,0.06]
[1645273731053,1.24067577,2717.6,2717.4,0.06083182]
[1645273731453,0.71886667,2717.5,2717.4,0.06083182]
[1645273732105,0.71886667,2717.5,2717.4,0.06]
[1645273732508,0.92037,2717.7,2717.4,0.06]
[1645273732715,1.2338,2717.9,2717.4,0.06]
[1645273733109,1.2338,2717.9,2717.4,0.06199982]
[1645273733511,1.2338,2717.9,2717.4,0.06283164]
[1645273733512,0.76715059,2717.5,2717.4,0.06283164]
[1645273733709,0.76715059,2717.5,2717.4,0.06083182]
[1645273734509,0.76715059,2717.5,2717.4,0.06]
[1645273735011,4.36715059,2717.5,2717.4,0.06]
[1645273735212,3.6,2717.5,2717.4,0.06]
[1645273735476,3.6,2717.5,2717.4,0.90873964]
[1645273735665,1.2338,2717.9,2717.5,20.22]
[1645273735863,1.2338,2717.9,2717.6,0.84873964]
[1645273736164,7.04597391,2718.0,2717.7,1.83983]
[1645273736362,7.04597391,2718.0,2717.8,0.84873964]
[1645273736962,7.04597391,2718.0,2717.8,1.76864964]
[1645273737161,7.04597391,2718.0,2717.8,1.83981]
[1645273737362,7.04597391,2718.0,2717.9,0.84946246]
[1645273737561,7.04597391,2718.0,2717.8,0.91991]
[1645273737765,7.04597391,2718.0,2717.8,1.8399444]
[1645273738862,7.04597391,2718.0,2717.8,2.7599844]
[1645273739304,7.04597391,2718.0,2717.9,0.84972951]
[1645273739903,7.04597391,2718.0,2717.8,2.7599844]
[1645273740103,7.04597391,2718.0,2717.9,0.84994523]
[1645273740311,7.04597391,2718.0,2717.8,0.91991]
[1645273740503,7.04597391,2718.0,2717.7,1.83982]
[1645273740905,7.04597391,2718.0,2717.8,0.85032373]
[1645273741307,7.04597391,2718.0,2717.8,1.77040373]
[1645273741508,7.04597391,2718.0,2717.8,0.92008]
[1645273741814,7.04597391,2718.0,2717.9,0.85024932]
[1645273743657,7.06196391,2718.0,2717.9,0.85024932]
[1645273744060,7.06196391,2718.0,2717.8,1.8401813]
[1645273744259,7.06196391,2718.0,2717.9,0.85123404]
[1645273744459,7.06196391,2718.0,2717.9,0.85117888]
[1645273744660,7.06196391,2718.0,2717.8,1.8401813]
[1645273744661,7.06196391,2718.0,2717.8,0.92008]
[1645273745471,7.06196391,2718.0,2717.9,0.85122171]
[1645273745864,7.06196391,2718.0,2717.6,0.77342153]
[1645273746709,0.73303622,2717.9,2717.6,0.00199982]
[1645273746910,0.73303622,2717.9,2717.4,0.19673164]
[1645273747312,0.73303622,2717.9,2717.4,0.01283164]
[1645273747614,0.73303622,2717.9,2717.4,0.01]
[1645273747615,1.93433622,2717.9,2717.4,0.01]
[1645273748016,1.93433622,2717.9,2717.4,0.01083182]
[1645273748409,0.92039,2717.8,2717.4,0.01083182]
[1645273748713,4.42039,2717.8,2717.4,0.01083182]
[1645273748910,4.42039,2717.8,2717.4,0.01]
[1645273749308,4.42039,2717.8,2717.4,0.01083182]
[1645273749507,0.92039,2717.8,2717.4,0.01083182]
[1645273749910,3.6817807,2717.8,2717.4,0.01083182]
[1645273750110,0.92051,2717.7,2717.4,0.01]
[1645273750314,0.92051,2717.7,2717.4,0.01083182]
[1645273750558,4.42051,2717.7,2717.4,0.01083182]
[1645273750954,6.26155,2717.7,2717.4,0.01083182]
[1645273751151,6.26155,2717.7,2717.4,0.00087582]
[1645273751351,6.26155,2717.7,2717.4,4.4e-05]
[1645273751554,6.26155,2717.7,2717.4,0.00087582]
[1645273752352,0.92054,2717.6,2717.4,0.00087582]
[1645273753455,7.00101622,2717.9,2717.4,0.00087582]
[1645273753656,0.92036,2717.7,2717.4,4.4e-05]
[1645273754052,0.92036,2717.7,2717.4,0.00087582]
[1645273754702,0.92047,2717.6,2717.4,0.00087582]
[1645273754903,0.92047,2717.6,2717.4,4.4e-05]
[1645273755117,0.92047,2717.6,2717.4,0.00087582]
[1645273756105,0.92047,2717.6,2717.4,4.4e-05]
[1645273756307,0.92047,2717.6,2717.4,0.00087582]
[1645273757307,4.42047,2717.6,2717.4,4.4e-05]
[1645273757506,9.0,2717.5,2717.3,0.000144]
[1645273757706,0.92047,2717.6,2717.4,0.00083182]
[1645273757707,5.3409744,2717.6,2717.4,0.00083182]
[1645273757964,6.26183,2717.5,2717.4,3.182e-05]
[1645273758556,6.26183,2717.5,2717.3,0.000144]
[1645273758557,7.18246,2717.5,2717.3,0.000144]
[1645273758954,0.78099118,2717.4,2717.3,0.000144]
[1645273759156,2.62222118,2717.4,2717.3,0.000144]
[1645273759856,6.12222118,2717.4,2717.3,0.000144]
[1645273760456,2.62222118,2717.4,2717.3,0.000144]
[1645273765108,3.92222118,2717.4,2717.3,0.000144]
[1645273765307,2.62222118,2717.4,2717.3,0.000144]
[1645273765957,3.33589874,2717.4,2717.3,0.000144]
[1645273766259,1.49466874,2717.4,2717.3,0.000144]
[1645273766456,2.67326874,2717.4,2717.3,0.000144]
[1645273768255,8.11434874,2717.4,2717.3,0.000144]
[1645273771007,7.33335756,2717.4,2717.3,0.000144]
[1645273771209,7.33335756,2717.4,2717.2,0.00349276]
[1645273771407,2.55480756,2717.3,2717.2,0.00349276]
[1645273771908,2.55480756,2717.3,2717.2,0.00349278]
[1645273772308,1.63420756,2717.3,2717.2,0.00349278]
[1645273772505,2.38635316,2717.3,2717.2,0.00349278]
[1645273772962,2.38635316,2717.3,2717.2,0.0026629]
[1645273774056,1.63420756,2717.3,2717.2,0.0026629]
[1645273774957,2.33235495,2717.3,2717.2,0.0026629]
[1645273776708,2.32235495,2717.3,2717.2,0.0026629]
[1645273777712,1.62420756,2717.3,2717.2,0.0026629]
[1645273778017,0.70367756,2717.3,2717.2,0.0026629]
[1645273778214,4.7786,2717.4,2717.2,0.0026629]
[1645273779013,4.7786,2717.4,2717.3,0.79002514]
[1645273779218,3.6,2717.4,2717.3,0.79002514]
[1645273780480,3.6,2717.4,2717.3,1.71023514]
[1645273782170,3.6,2717.4,2717.3,1.71025514]
[1645273782670,3.6,2717.4,2717.3,2.23925514]
[1645273782868,3.6,2717.4,2717.3,2.93130011]
[1645273783068,3.6,2717.4,2717.3,2.23925514]
[1645273783471,5.06375996,2718.0,2717.9,0.66430245]
[1645273783674,5.06375996,2718.0,2717.9,1.58414245]
[1645273784212,0.78553326,2719.0,2718.0,6.5]
[1645273784410,0.78553326,2719.0,2717.9,0.66430245]
[1645273784717,0.78553326,2719.0,2718.4,0.64819333]